bitfinex-derivatives/quotes_SOLF0:USTF0_20250114
["timestamp","ask_amount","ask_price","bid_price","bid_amount"]
[1736844679974,7.88519961,187.19,187.13,7.88519961]
[1736844680677,2.6722,187.18,187.15,2.6725]
[1736844681571,7.88519961,187.17,187.15,2.6725]
[1736844681877,2.6722,187.18,187.15,2.6725]
[1736844682379,2.6722,187.18,187.16,2.6724]
[1736844683473,10.55719961,187.19,187.16,2.6724]
[1736844685276,5.3409,187.3,187.17,7.88519961]
[1736844685481,7.88519961,187.23,187.17,7.88519961]
[1736844685777,2.6716,187.22,187.19,2.6719]
[1736844686480,7.88519961,187.21,187.15,1.6695]
[1736844686981,7.88519961,187.19,187.15,1.6695]
[1736844687182,10.55719961,187.19,187.17,2.6722]
[1736844688280,10.55719961,187.19,187.16,2.6723]
[1736844688982,2.6721,187.18,187.15,4.342]
[1736844689178,7.88519961,187.17,187.15,2.6725]
[1736844689382,7.88519961,187.17,187.11,7.88519961]
[1736844689573,7.88519961,187.15,187.09,11.09909961]
[1736844690485,7.88519961,187.11,187.05,31.11604306]
[1736844690782,7.88519961,187.11,187.05,39.00124267]
[1736844690982,7.88519961,187.12,187.07,7.88519961]
[1736844693189,7.88519961,187.12,187.1,2.6732]
[1736844693882,7.88519961,187.14,187.12,2.6729]
[1736844697189,7.88519961,187.14,187.09,7.88519961]
[1736844697391,10.55789961,187.14,187.11,2.6731]
[1736844701091,7.88519961,187.17,187.11,7.88519961]
[1736844701286,45.07861374,187.26,187.13,7.88519961]
[1736844701485,10.55659961,187.23,187.19,2.672]
[1736844701692,7.88519961,187.23,187.17,7.88519961]
[1736844701982,7.88519961,187.23,187.19,2.6719]
[1736844701983,10.55659961,187.23,187.19,2.6719]
[1736844702188,7.88519961,187.23,187.19,2.6719]
[1736844702382,7.88519961,187.21,187.17,7.88519961]
[1736844702586,7.88519961,187.21,187.17,2.6722]
[1736844704291,2.6718,187.2,187.17,2.6722]
[1736844706191,7.88519961,187.19,187.17,2.6722]
[1736844712896,40.26581374,187.26,187.17,7.88519961]
[1736844713193,7.88519961,187.25,187.19,7.88519961]
[1736844713399,5.36,187.29,187.12,1.5441]
[1736844713400,7.88519961,187.21,187.12,1.5441]
[1736844713598,7.88519961,187.19,187.14,7.88519961]
[1736844713798,7.88519961,187.19,187.14,15.2855759]
[1736844714898,7.88519961,187.19,187.14,7.88519961]
[1736844715098,7.88519961,187.19,187.18,2.6721]
[1736844716098,7.88519961,187.19,187.12,31.03274306]
[1736844716398,7.88519961,187.19,187.12,38.91794267]
[1736844716802,10.55719961,187.19,187.14,2.6727]
[1736844717002,10.55719961,187.19,187.12,38.91794267]
[1736844717399,10.55719961,187.19,187.12,9.42929961]
[1736844718303,7.88519961,187.19,187.14,7.88519961]
[1736844718804,7.88519961,187.19,187.17,2.6721]
[1736844724207,10.55729961,187.19,187.16,2.6723]
[1736844724406,7.88519961,187.17,187.16,2.6723]
[1736844724607,7.88519961,187.17,187.12,1.5441]
[1736844724905,7.88519961,187.15,187.11,1.6078]
[1736844725705,7.88519961,187.15,187.14,2.6727]
[1736844728202,7.88519961,187.15,187.13,2.6728]
[1736844728408,7.88519961,187.14,187.13,2.6728]
[1736844731313,7.88519961,187.17,187.11,1.6078]
[1736844731615,7.88519961,187.17,187.16,2.6723]
[1736844732209,182.873,187.27,187.14,7.88519961]
[1736844732505,7.88519961,187.21,187.14,7.88519961]
[1736844733815,7.88519961,187.21,187.2,2.6718]
[1736844736016,7.88519961,187.21,187.19,2.6719]
[1736844736218,7.88519961,187.2,187.19,2.6719]
[1736844737506,7.88519961,187.2,187.18,2.6721]
[1736844737813,7.88519961,187.2,187.13,29.48864306]
[1736844738016,7.88519961,187.14,187.13,29.48864306]
[1736844739316,7.88519961,187.14,187.13,2.6728]
[1736844745618,10.55789961,187.14,187.06,38.92654267]
[1736844745819,7.88519961,187.11,187.06,38.92654267]
[1736844746424,7.88519961,187.11,187.06,9.43789961]
[1736844746724,7.88519961,187.11,187.1,2.6733]
[1736844751127,7.88519961,187.11,187.09,2.6733]
[1736844751526,7.88519961,187.11,187.06,1.5527]
[1736844751729,5.34,187.16,187.05,1.6198]
[1736844751730,7.88519961,187.09,187.08,2.6735]
[1736844752430,182.873,187.19,187.05,1.6198]
[1736844752627,182.873,187.19,187.08,7.88519961]
[1736844752825,182.873,187.19,187.1,7.88519961]
[1736844753022,182.873,187.26,187.08,5.4]
[1736844753224,149.7456049,187.28,187.17,7.88519961]
[1736844753432,7.88519961,187.25,187.19,7.88519961]
[1736844753631,4.8705,187.32,187.19,7.88519961]
[1736844753934,7.88519961,187.28,187.21,7.88519961]
[1736844754124,4.8705,187.32,187.21,7.88519961]
[1736844754321,7.88519961,187.29,187.23,7.88519961]
[1736844754631,7.88519961,187.27,187.17,1.5968]
[1736844754928,7.88519961,187.27,187.21,7.88519961]
[1736844755126,2.6707,187.29,187.21,7.88519961]
[1736844755334,7.88519961,187.27,187.21,7.88519961]
[1736844755537,7.88519961,187.25,187.19,7.88519961]
[1736844756427,7.88519961,187.23,187.17,9.48199961]
[1736844756627,7.88519961,187.21,187.17,1.5968]
[1736844756928,7.88519961,187.21,187.19,2.6719]
[1736844757930,7.88519961,187.21,187.16,4.2215]
[1736844758132,7.88519961,187.18,187.13,7.88519961]
[1736844759427,12.33960401,187.21,187.12,1.6662]
[1736844760333,2.6715,187.23,187.12,1.6662]
[1736844760535,12.33960401,187.27,187.15,12.33960401]
[1736844760733,5.42,187.29,187.18,12.33960401]
[1736844761034,5.42,187.29,187.22,2.6714]
[1736844761237,12.33960401,187.3,187.18,12.33960401]
[1736844761433,17.75960401,187.3,187.18,12.33960401]
[1736844761836,2.6709,187.27,187.21,2.6716]
[1736844762036,2.6709,187.27,187.18,12.33960401]
[1736844762531,12.33960401,187.27,187.18,12.33960401]
[1736844762835,2.671,187.26,187.18,12.33960401]
[1736844763035,12.33960401,187.27,187.18,12.33960401]
[1736844763437,12.33960401,187.27,187.25,2.6711]
[1736844763639,2.6705,187.29,187.25,2.6711]
[1736844763935,17.75960401,187.3,187.18,12.33960401]
[1736844764436,2.6707,187.28,187.23,2.6713]
[1736844764638,2.6707,187.28,187.18,12.33960401]
[1736844765933,149.7456049,187.43,187.21,12.33960401]
[1736844766135,12.33960401,187.34,187.22,3.2584]
[1736844766337,12.33960401,187.34,187.22,4.8987]
[1736844766635,12.33960401,187.31,187.22,4.8987]
[1736844767233,2.6705,187.3,187.25,2.671]
[1736844767434,12.33960401,187.31,187.25,2.671]
[1736844767633,12.33960401,187.34,187.22,4.8987]
[1736844767844,2.67,187.34,187.27,2.6708]
[1736844768033,2.67,187.34,187.24,12.33960401]
[1736844768034,13.95170401,187.35,187.24,12.33960401]
[1736844768934,2.6701,187.32,187.28,2.6706]
[1736844769139,13.95170401,187.35,187.22,4.8987]
[1736844769440,2.6704,187.31,187.22,4.8987]
[1736844770542,2.6697,187.35,187.32,2.6701]
[1736844770837,12.33960401,187.37,187.24,12.33960401]
[1736844771235,2.6697,187.35,187.31,2.6701]
[1736844771536,2.6697,187.35,187.24,12.33960401]
[1736844771733,2.6697,187.35,187.31,2.6701]
[1736844772134,2.6697,187.35,187.24,12.33960401]
[1736844772336,2.6697,187.35,187.31,2.6702]
[1736844772639,2.6693,187.38,187.27,12.33960401]
[1736844772835,2.6693,187.38,187.3,2.6704]
[1736844773042,2.6693,187.38,187.27,12.33960401]
[1736844773632,2.6693,187.38,187.34,2.6697]
[1736844774534,17.79960401,187.4,187.34,2.6697]
[1736844774535,2.6694,187.37,187.34,2.6697]
[1736844774742,17.79960401,187.4,187.32,2.67]
[1736844775140,12.33960401,187.37,187.32,2.67]
[1736844775732,12.33960401,187.37,187.23,5.46]
[1736844775937,2.6698,187.34,187.26,12.33960401]
[1736844776338,12.33960401,187.37,187.26,12.33960401]
[1736844776538,17.81960401,187.4,187.29,12.33960401]
[1736844776738,17.81960401,187.4,187.3,4.7316]
[1736844777245,2.6693,187.38,187.35,2.6696]
[1736844777545,17.81960401,187.4,187.3,4.7316]
[1736844777841,149.7456049,187.54,187.3,4.7316]
[1736844777842,149.7456049,187.54,187.37,12.33960401]
[1736844778140,375.9755123,187.56,187.38,17.91960401]
[1736844778342,377.0308123,187.56,187.51,2.6674]
[1736844778541,374.3640123,187.56,187.51,2.6674]
[1736844778740,374.3640123,187.56,187.49,12.33960401]
[1736844778946,374.3640123,187.56,187.51,2.6674]
[1736844779639,377.0307123,187.56,187.49,15.00720401]
[1736844779845,2.6667,187.56,187.49,12.33960401]
[1736844782245,2.6667,187.56,187.5,2.6675]
[1736844784143,2.6669,187.55,187.5,2.6675]
[1736844785943,2.6672,187.53,187.48,2.6677]
[1736844786147,12.33960401,187.56,187.48,2.6677]
[1736844786346,12.33960401,187.56,187.43,12.33960401]
[1736844786650,2.6674,187.52,187.47,2.668]
[1736844787849,2.6674,187.52,187.43,12.33960401]
[1736844787850,12.33960401,187.56,187.43,12.33960401]
[1736844788046,2.6675,187.51,187.46,2.6681]
[1736844788546,12.33960401,187.53,187.43,12.33960401]
[1736844789147,13.88860401,187.53,187.43,12.33960401]
[1736844789750,12.33960401,187.5,187.4,12.33960401]
[1736844790447,2.6683,187.46,187.4,12.33960401]
[1736844790647,2.6683,187.46,187.41,2.6687]
[1736844790852,2.6683,187.46,187.39,4.8076]
[1736844791053,2.6683,187.46,187.41,2.6688]
[1736844792947,2.6683,187.45,187.41,2.6688]
[1736844793650,2.6684,187.44,187.4,2.6689]
[1736844793956,2.6684,187.44,187.37,16.0882299]
[1736844794750,2.6686,187.43,187.39,2.6691]
[1736844796355,2.6686,187.43,187.37,12.33960401]
[1736844796557,2.6686,187.43,187.4,2.669]
[1736844797457,12.33960401,187.47,187.37,12.33960401]
[1736844797651,2.6682,187.46,187.42,2.6686]
[1736844797957,2.6682,187.46,187.37,12.33960401]
[1736844798154,2.6682,187.46,187.39,2.669]
[1736844798358,2.6682,187.46,187.37,12.33960401]
[1736844798752,2.6682,187.46,187.42,2.6686]
[1736844799557,2.6679,187.48,187.44,2.6684]
[1736844800060,2.6677,187.5,187.46,2.668]
[1736844803960,2.6678,187.48,187.39,1.5532]
[1736844804267,2.6678,187.48,187.41,12.33960401]
[1736844804561,3.2366,187.51,187.41,12.33960401]
[1736844804963,2.6677,187.49,187.41,12.33960401]
[1736844806065,2.6677,187.49,187.45,2.6681]
[1736844807260,12.33960401,187.49,187.43,2.6685]
[1736844807463,12.33960401,187.49,187.39,1.5532]
[1736844807670,12.33960401,187.49,187.38,12.33960401]
[1736844807671,5.54,187.48,187.38,12.33960401]
[1736844807966,2.6684,187.45,187.41,2.6688]
[1736844808566,2.6685,187.44,187.41,2.6688]
[1736844809179,2.6689,187.41,187.38,2.6692]
[1736844812678,2.669,187.4,187.37,2.6694]
[1736844814181,2.6688,187.42,187.39,2.6691]
[1736844814683,2.6689,187.41,187.38,2.6692]
[1736844815482,12.33960401,187.43,187.35,3.182]
[1736844815781,12.33960401,187.46,187.35,15.52160401]
[1736844815972,2.6684,187.44,187.41,2.6687]
[1736844816780,15.00780401,187.46,187.43,2.6685]
[1736844817079,5.54,187.48,187.43,2.6685]
[1736844817383,2.6679,187.48,187.35,15.52160401]
[1736844817576,12.33960401,187.49,187.44,2.6684]
[1736844818177,2.6678,187.49,187.46,2.668]
[1736844818383,5.54,187.57,187.44,12.33960401]
[1736844818682,4.9316,187.59,187.38,12.33960401]
[1736844818683,2.6669,187.55,187.51,2.6674]
[1736844819179,5.54,187.58,187.47,12.33960401]
[1736844819180,2.6667,187.56,187.52,2.6672]
[1736844819876,2.6667,187.56,187.51,2.6674]
[1736844820477,17.87960401,187.58,187.51,2.6674]
[1736844820674,12.33960401,187.55,187.44,12.33960401]
[1736844822385,12.33960401,187.52,187.43,3.2783]
[1736844823087,2.6678,187.49,187.44,2.6683]
[1736844823488,12.33960401,187.52,187.44,2.6683]
[1736844825186,2.668,187.48,187.44,2.6683]
[1736844825885,2.668,187.48,187.45,2.6683]
[1736844826991,2.668,187.48,187.44,2.6684]
[1736844827382,5.54,187.51,187.44,2.6684]
[1736844827587,5.54,187.51,187.39,47.29423349]
[1736844828090,2.6683,187.45,187.39,47.29423349]
[1736844829192,2.6685,187.44,187.39,1.5355]
[1736844829382,12.33960401,187.49,187.39,1.5355]
[1736844829990,2.668,187.47,187.44,2.6684]
[1736844832194,2.6682,187.46,187.42,2.6686]
[1736844833895,2.6682,187.46,187.39,1.5355]
[1736844834193,2.6682,187.46,187.43,2.6685]
[1736844835194,2.6683,187.45,187.42,2.6687]
[1736844835588,12.33960401,187.49,187.42,2.6687]
[1736844835894,2.6682,187.46,187.43,2.6685]
[1736844839795,12.33960401,187.49,187.39,1.5355]
[1736844839989,2.6683,187.45,187.42,2.6687]
[1736844840189,12.33960401,187.49,187.39,1.5355]
[1736844841191,2.6681,187.46,187.43,2.6684]
[1736844841398,12.33960401,187.49,187.39,1.5355]
[1736844841891,15.49360401,187.49,187.39,1.5355]
[1736844842797,15.49360401,187.49,187.37,14.00080401]
[1736844843096,12.33960401,187.48,187.37,14.00080401]
[1736844843296,2.6683,187.45,187.4,2.6688]
[1736844843497,12.33960401,187.48,187.37,14.00080401]
[1736844843899,2.6685,187.44,187.4,2.6688]
[1736844844096,12.33960401,187.48,187.4,2.6688]
[1736844844298,12.33960401,187.48,187.37,14.00080401]
[1736844844601,2.6688,187.42,187.39,2.669]
[1736844845702,2.669,187.4,187.38,2.6692]
[1736844846094,12.33960401,187.45,187.38,2.6692]
[1736844846993,12.33960401,187.45,187.34,12.33960401]
[1736844847199,12.33960401,187.45,187.36,2.6694]
[1736844847398,12.33960401,187.42,187.33,3.1345]
[1736844847593,2.6694,187.38,187.33,3.1345]
[1736844847801,2.6694,187.38,187.35,2.6696]
[1736844853103,2.6696,187.36,187.34,2.6698]
[1736844853408,12.33960401,187.39,187.28,12.33960401]
[1736844853605,2.6696,187.36,187.31,2.6702]
[1736844853805,12.33960401,187.39,187.31,2.6702]
[1736844854408,2.6699,187.34,187.31,2.6702]
[1736844855903,12.33960401,187.33,187.25,3.2947]
[1736844856311,12.33960401,187.33,187.25,1.6004]
[1736844857110,2.6705,187.3,187.27,2.6708]
[1736844857509,12.33960401,187.33,187.22,12.33960401]
[1736844857717,2.6705,187.3,187.26,2.671]
[1736844858310,2.6705,187.3,187.22,12.33960401]
[1736844858504,2.6705,187.3,187.27,2.6708]
[1736844861401,12.33960401,187.3,187.2,4.7792]
[1736844861603,2.6708,187.27,187.23,2.6713]
[1736844861807,12.33960401,187.3,187.2,4.7792]
[1736844862007,12.33960401,187.3,187.2,1.6245]
[1736844862413,2.6711,187.26,187.22,2.6714]
[1736844863221,2.6709,187.27,187.2,1.6245]
[1736844863512,13.93640401,187.34,187.22,12.33960401]
[1736844863913,2.6704,187.31,187.27,2.6707]
[1736844866614,13.93640401,187.34,187.22,12.33960401]
[1736844866814,2.6705,187.3,187.26,2.6709]
[1736844867517,2.6708,187.28,187.23,2.6714]
[1736844867716,12.33960401,187.31,187.2,1.6245]
[1736844868114,2.6712,187.25,187.22,2.6715]
[1736844868317,12.33960401,187.28,187.18,99.9]
[1736844868717,2.6713,187.24,187.18,99.9]
[1736844869916,17.83960401,187.28,187.2,2.6717]
[1736844870115,17.83960401,187.28,187.15,4.8485]
[1736844870116,12.33960401,187.25,187.15,4.8485]
[1736844870811,2.6718,187.21,187.17,2.6722]
[1736844871015,12.33960401,187.25,187.15,4.8485]
[1736844871212,12.33960401,187.22,187.15,4.8485]
[1736844871415,12.33960401,187.22,187.16,2.6724]
[1736844871416,2.672,187.19,187.16,2.6724]
[1736844871719,12.33960401,187.22,187.13,71.50945348]
[1736844873119,2.6721,187.19,187.15,2.6725]
[1736844874215,12.33960401,187.22,187.15,2.6725]
[1736844874420,2.6722,187.18,187.14,2.6727]
[1736844874720,12.33960401,187.22,187.14,2.6727]
[1736844875122,2.6722,187.18,187.14,2.6727]
[1736844875421,12.33960401,187.22,187.1,15.46940401]
[1736844875619,4.9891,187.27,187.13,2.6728]
[1736844875620,2.6723,187.17,187.13,2.6728]
[1736844876620,15.01160401,187.19,187.15,2.6724]
[1736844876816,5.5,187.21,187.1,15.46940401]
[1736844877220,5.5,187.21,187.18,2.672]
[1736844877421,5.5,187.21,187.1,15.46940401]
[1736844878324,2.6719,187.2,187.16,2.6723]
[1736844878728,5.5,187.21,187.1,15.46940401]
[1736844879417,5.5,187.21,187.1,3.1298]
[1736844879622,5.5,187.21,187.13,12.33960401]
[1736844879822,12.33960401,187.22,187.13,12.33960401]
[1736844880022,15.01120401,187.22,187.13,12.33960401]
[1736844880529,15.01120401,187.22,187.18,2.672]
[1736844880730,2.672,187.2,187.13,12.33960401]
[1736844880929,12.33960401,187.22,187.13,12.33960401]
[1736844882233,2.672,187.19,187.16,2.6723]
[1736844883035,2.6718,187.21,187.17,2.6722]
[1736844883232,2.6718,187.21,187.13,12.33960401]
[1736844883426,12.33960401,187.22,187.13,12.33960401]
[1736844884428,4.9891,187.27,187.16,12.33960401]
[1736844884429,10.4691,187.27,187.16,12.33960401]
[1736844884929,2.6713,187.24,187.21,2.6716]
[1736844885534,2.6713,187.24,187.2,2.6718]
[1736844888730,2.6714,187.23,187.2,2.6718]
[1736844890332,12.33960401,187.26,187.13,12.33960401]
[1736844890527,12.33960401,187.23,187.13,12.33960401]
[1736844892235,2.6718,187.2,187.17,2.6722]
[1736844894737,2.6718,187.2,187.18,2.6721]
[1736844896835,2.6718,187.2,187.15,7.89474469]
[1736844897041,10.56674469,187.19,187.15,7.89474469]
[1736844897341,7.89474469,187.19,187.13,7.89474469]
[1736844898241,7.89474469,187.19,187.16,2.6724]
[1736844898943,10.4691,187.27,187.18,2.6721]
[1736844899244,7.89474469,187.21,187.15,7.89474469]
[1736844899840,10.56654469,187.21,187.18,2.672]
[1736844900045,7.89474469,187.21,187.18,2.672]
[1736844900947,2.6719,187.2,187.17,2.6722]
[1736844901146,7.89474469,187.21,187.15,7.89474469]
[1736844901341,7.89474469,187.19,187.13,7.89474469]
[1736844901640,10.56684469,187.19,187.16,2.6723]
[1736844903244,7.89474469,187.17,187.1,18.29236197]
[1736844903449,5.3423,187.25,187.1,18.29236197]
[1736844903450,7.89474469,187.15,187.1,18.29236197]
[1736844903940,7.89474469,187.15,187.1,11.02454469]
[1736844904746,7.89474469,187.15,187.1,7.89474469]
[1736844905342,7.89474469,187.13,187.08,7.89474469]
[1736844905546,7.89474469,187.13,187.07,115.12256197]
[1736844905747,7.89474469,187.13,187.07,107.85474469]
[1736844906050,10.56764469,187.13,187.07,107.85474469]
[1736844906350,7.89474469,187.16,187.09,7.89474469]
[1736844906846,10.56714469,187.16,187.11,2.6731]
[1736844907053,7.89474469,187.14,187.07,99.96]
[1736844907254,7.89474469,187.14,187.07,7.89474469]
[1736844907454,7.89474469,187.12,187.09,2.6733]
[1736844907647,4.743,187.19,187.07,7.89474469]
[1736844907851,7.89474469,187.17,187.11,7.89474469]
[1736844908046,5.44,187.24,187.13,7.89474469]
[1736844908250,7.89474469,187.2,187.13,7.89474469]
[1736844908452,8.5599,187.24,187.15,7.89474469]
[1736844908854,7.89474469,187.22,187.17,7.89474469]
[1736844909049,7.89474469,187.22,187.11,1.6585]
[1736844909350,7.89474469,187.22,187.17,7.89474469]
[1736844909551,7.89474469,187.22,187.19,2.6719]
[1736844910253,10.56624469,187.22,187.19,2.6719]
[1736844910454,7.89474469,187.22,187.19,2.6719]
[1736844912353,10.56634469,187.22,187.19,2.6719]
[1736844913352,2.6713,187.24,187.17,7.89474469]
[1736844913561,10.56604469,187.24,187.17,7.89474469]
[1736844915059,10.56604469,187.24,187.2,2.6717]
[1736844916559,2.6713,187.24,187.2,2.6717]
[1736844916854,10.56604469,187.24,187.2,2.6717]
[1736844917662,7.89474469,187.24,187.2,2.6717]
[1736844917863,2.6714,187.23,187.2,2.6717]
[1736844918054,7.89474469,187.22,187.18,2.672]
[1736844918459,7.89474469,187.2,187.15,7.89474469]
[1736844918866,10.56654469,187.2,187.17,2.6721]
[1736844919961,7.89474469,187.18,187.17,2.6721]
[1736844920162,7.89474469,187.18,187.12,1.6359]
[1736844920364,7.89474469,187.16,187.12,9.53064469]
[1736844920564,7.89474469,187.18,187.12,9.53064469]
[1736844920954,3.1186,187.27,187.12,9.53064469]
[1736844921162,7.89474469,187.19,187.14,7.89474469]
[1736844923164,7.89474469,187.19,187.17,2.6722]
[1736844924367,3.1186,187.27,187.14,7.89474469]
[1736844924563,8.5586,187.27,187.18,7.89474469]
[1736844925269,7.89474469,187.24,187.18,7.89474469]
[1736844925862,7.89474469,187.24,187.21,2.6716]
[1736844927673,10.56604469,187.24,187.21,2.6716]
[1736844928371,7.89474469,187.22,187.21,2.6716]
[1736844928570,7.89474469,187.22,187.14,7.89474469]
[1736844928869,7.89474469,187.2,187.14,7.89474469]
[1736844929374,2.6719,187.2,187.16,2.6723]
[1736844929574,12.3382863,187.22,187.16,2.6723]
[1736844930171,2.6721,187.19,187.15,2.6725]
[1736844932577,17.7582863,187.22,187.11,48.90494539]
[1736844932779,2.6724,187.17,187.13,2.6728]
[1736844935174,2.6724,187.17,187.14,2.6727]
[1736844935376,12.3382863,187.19,187.11,47.24644539]
[1736844935677,2.6727,187.14,187.11,47.24644539]
[1736844936283,12.3382863,187.16,187.07,15.6200863]
[1736844936486,12.3382863,187.16,187.07,3.2818]
[1736844936984,1.5847,187.21,187.07,3.2818]
[1736844937186,1.5847,187.21,187.13,12.3382863]
[1736844937387,12.3382863,187.25,187.16,2.6723]
[1736844937589,12.3382863,187.25,187.13,12.3382863]
[1736844937984,12.3382863,187.25,187.18,2.6721]
[1736844938191,2.6717,187.22,187.18,2.6721]
[1736844938382,2.6717,187.22,187.13,12.3382863]
[1736844938588,1.6205,187.26,187.2,2.6718]
[1736844938887,13.9587863,187.26,187.13,12.3382863]
[1736844939088,12.3382863,187.23,187.16,2.6723]
[1736844939589,2.6717,187.21,187.16,2.6723]
[1736844940181,2.6718,187.2,187.16,2.6723]
[1736844940885,12.3382863,187.2,187.08,19.60610358]
[1736844941380,2.6723,187.17,187.08,7.26781728]
[1736844941582,12.3382863,187.2,187.07,64.11877896]
[1736844942088,2.6724,187.16,187.12,2.6728]
[1736844942996,12.3382863,187.17,187.11,2.673]
[1736844943388,3.1626,187.19,187.07,64.11877896]
[1736844943587,2.6722,187.18,187.07,64.11877896]
[1736844944091,2.6722,187.18,187.14,2.6726]
[1736844944793,2.6724,187.16,187.1,2.6732]
[1736844944995,2.6724,187.16,187.07,64.11877896]
[1736844945390,3.1626,187.19,187.07,64.11877896]
[1736844945592,17.9182863,187.2,187.1,12.3382863]
[1736844945787,12.3382863,187.2,187.1,12.3382863]
[1736844946089,2.6721,187.19,187.15,2.6724]
[1736844946395,2.6721,187.18,187.15,2.6724]
[1736844949093,2.6721,187.18,187.1,12.3382863]
[1736844949290,10.56948242,187.18,187.14,2.6726]
[1736844950697,10.56948242,187.18,187.15,2.6725]
[1736844951003,7.89738242,187.18,187.14,7.89738242]
[1736844951301,10.56928242,187.2,187.16,2.6723]
[1736844951496,7.89738242,187.2,187.16,2.6723]
[1736844953198,2.672,187.19,187.16,2.6723]
[1736844953607,2.672,187.19,187.14,7.89738242]
[1736844953608,10.56958242,187.18,187.14,2.6726]
[1736844953903,7.89738242,187.18,187.14,2.6726]
[1736844954401,10.56958242,187.18,187.13,2.6727]
[1736844954595,10.56958242,187.18,187.12,7.89738242]
[1736844955105,7.89738242,187.16,187.1,7.89738242]
[1736844955400,7.89738242,187.16,187.13,2.6727]
[1736844955401,10.56978242,187.16,187.13,2.6727]
[1736844955602,7.89738242,187.16,187.1,7.89738242]
[1736844955802,7.89738242,187.14,187.1,7.89738242]
[1736844956203,7.89738242,187.14,187.07,51.78049266]
[1736844956204,7.89738242,187.14,187.08,7.89738242]
[1736844958101,10.57008242,187.14,187.11,2.673]
[1736844959102,7.89738242,187.12,187.11,2.673]
[1736844960203,7.89738242,187.12,187.07,48.49869266]
[1736844961107,2.6731,187.11,187.09,2.6733]
[1736844961308,7.89738242,187.15,187.08,7.89738242]
[1736844961513,4.99488533,187.22,187.12,7.89738242]
[1736844961710,2.6719,187.2,187.17,2.6722]
[1736844961904,7.89738242,187.21,187.17,2.6722]
[1736844962207,10.56918242,187.21,187.17,2.6722]
[1736844963011,2.6718,187.2,187.17,2.6722]
[1736844965207,7.89738242,187.21,187.14,7.89738242]
[1736844965407,7.89738242,187.19,187.13,7.89738242]
[1736844966312,2.6722,187.18,187.14,2.6726]
[1736844967407,7.89738242,187.17,187.11,7.89738242]
[1736844967715,10.56978242,187.17,187.13,2.6728]
[1736844968214,10.56978242,187.17,187.11,7.89738242]
[1736844968414,10.56978242,187.17,187.15,2.6725]
[1736844968613,7.89738242,187.17,187.11,7.89738242]
[1736844968914,7.89738242,187.13,187.09,2.6733]
[1736844969213,10.57028242,187.13,187.07,56.39607508]
[1736844969408,7.89738242,187.13,187.07,56.39607508]
[1736844970015,10.57048242,187.11,187.08,2.6735]
[1736844970510,7.89738242,187.11,187.08,2.6735]
[1736844971015,7.89738242,187.11,187.09,2.6734]
[1736844971418,7.89738242,187.13,187.07,7.89738242]
[1736844973216,7.89738242,187.13,187.1,2.6732]
[1736844973818,10.57018242,187.13,187.1,2.6732]
[1736844974623,7.89738242,187.11,187.09,2.6734]
[1736844974916,7.89738242,187.11,187.05,9.52368242]
[1736844976224,10.57048242,187.11,187.08,2.6734]
[1736844978324,5.52,187.15,187.05,9.52368242]
[1736844978526,7.89738242,187.12,187.1,2.6733]
[1736844981226,7.89738242,187.12,187.11,2.6731]
[1736844981528,7.89738242,187.17,187.11,7.89738242]
[1736844982422,7.89738242,187.17,187.14,2.6726]
[1736844983426,10.56968242,187.17,187.14,2.6726]
[1736844983628,7.89738242,187.17,187.13,2.6728]
[1736844984025,7.89738242,187.15,187.13,2.6728]
[1736844990233,7.89738242,187.17,187.15,2.6725]
[1736844992029,10.56968242,187.17,187.15,2.6725]
[1736844992225,7.89738242,187.17,187.15,2.6725]
[1736844993429,10.56968242,187.17,187.15,2.6725]
[1736844993629,10.56968242,187.17,187.14,2.6726]
[1736844993830,7.89738242,187.15,187.06,7.26781728]
[1736844994134,7.89738242,187.13,187.1,2.6732]
[1736844994431,7.89738242,187.11,187.06,15.1651997]
[1736844994835,7.89738242,187.11,187.06,7.89738242]
[1736844995231,7.89738242,187.11,187.09,2.6733]
[1736844997540,7.89738242,187.11,187.04,48.66024762]
[1736844997841,7.89738242,187.08,187.06,2.6738]
[1736844998040,7.89738242,187.08,187.04,48.66024762]
[1736844998242,10.57098242,187.08,187.05,2.6739]
[1736844999943,10.57098242,187.08,187.06,2.6738]
[1736845000139,2.6731,187.12,187.05,7.89738242]